[Event "Titled Tuesday Blitz June 27 Early 2023"]
[White "chess123456s"]
[Black "Bryakin, Mikhail"]
[BlackFideId "4165314"]
[WhiteElo "2557"]
[BlackElo "2753"]
[Result "1-0"]
[Round "10"]
[TimeControl "180+2"]
[Date "2023.06.27"]
[WhiteClock "0:01:02"]
[BlackClock "0:00:16"]
[Board "52"]

1. d4 {[%clk 0:03:00]}  Nf6 {[%clk 0:02:58]} 2. Nc3 {[%clk 0:03:00]}  c5 {[%clk 0:02:57]} 3. d5 {[%clk 0:03:00]}  e5 {[%clk 0:02:58]} 4. e4 {[%clk 0:02:59]}  d6 {[%clk 0:02:58]} 5. g3 {[%clk 0:02:59]}  g6 {[%clk 0:02:58]} 6. Bg2 {[%clk 0:02:59]}  h5 {[%clk 0:02:59]} 7. h3 {[%clk 0:02:59]}  Bh6 {[%clk 0:03:00]} 8. Nge2 {[%clk 0:02:56]}  Bxc1 {[%clk 0:02:58]} 9. Qxc1 {[%clk 0:02:57]}  h4 {[%clk 0:02:58]} 10. g4 {[%clk 0:02:57]}  Nh7 {[%clk 0:02:59]} 11. O-O {[%clk 0:02:56]}  g5 {[%clk 0:02:58]} 12. a4 {[%clk 0:02:54]}  Na6 {[%clk 0:02:55]} 13. Nd1 {[%clk 0:02:54]}  Nf8 {[%clk 0:02:54]} 14. Ne3 {[%clk 0:02:53]}  Ng6 {[%clk 0:02:53]} 15. c3 {[%clk 0:02:31]}  Nf4 {[%clk 0:02:50]} 16. Nxf4 {[%clk 0:02:26]}  gxf4 {[%clk 0:02:51]} 17. Nf5 {[%clk 0:02:26]}  Bxf5 {[%clk 0:02:51]} 18. exf5 {[%clk 0:02:27]}  Ke7 {[%clk 0:02:48]} 19. Re1 {[%clk 0:02:25]}  Kf6 {[%clk 0:02:48]} 20. Bf1 {[%clk 0:02:22]}  Nc7 {[%clk 0:02:47]} 21. f3 {[%clk 0:02:21]}  Nxd5 {[%clk 0:02:46]} 22. Qd2 {[%clk 0:02:15]}  Ne3 {[%clk 0:02:45]} 23. Rxe3 {[%clk 0:02:11]}  fxe3 {[%clk 0:02:45]} 24. Qxe3 {[%clk 0:02:12]}  d5 {[%clk 0:02:43]} 25. Rd1 {[%clk 0:02:11]}  Qd6 {[%clk 0:02:36]} 26. Bc4 {[%clk 0:01:52]}  d4 {[%clk 0:02:35]} 27. Qe4 {[%clk 0:01:52]}  b6 {[%clk 0:02:31]} 28. Kf2 {[%clk 0:01:47]}  Rae8 {[%clk 0:02:31]} 29. Rg1 {[%clk 0:01:31]}  dxc3 {[%clk 0:02:27]} 30. g5+ {[%clk 0:01:30]}  Kg7 {[%clk 0:02:27]} 31. f6+ {[%clk 0:01:26]}  Kf8 {[%clk 0:02:28]} 32. bxc3 {[%clk 0:01:26]}  Qd2+ {[%clk 0:02:28]} 33. Be2 {[%clk 0:01:25]}  Qf4 {[%clk 0:01:36]} 34. g6 {[%clk 0:01:20]}  Rh6 {[%clk 0:01:29]} 35. gxf7 {[%clk 0:01:06]}  Kxf7 {[%clk 0:01:08]} 36. Bc4+ {[%clk 0:01:03]}  Re6 {[%clk 0:00:44]} 37. Qb7+ {[%clk 0:01:02]}  Kxf6 {[%clk 0:00:20]} 38. Qg7+ {[%clk 0:01:01]}  Kf5 {[%clk 0:00:21]} 39. Qf7+ {[%clk 0:01:02]}  Ref6 {[%clk 0:00:16]} 40. Be6# {[%clk 0:01:02]} 1-0


[Site "https://www.chess.com"]

[Event "Titled Tuesday Blitz June 27 Early 2023"]
[White "Xu, Yi"]
[Black "Delorme, Axel"]
[WhiteFideId "8605564"]
[BlackFideId "632023"]
[WhiteElo "2731"]
[BlackElo "2552"]
[Result "1-0"]
[Round "10"]
[TimeControl "180+2"]
[Date "2023.06.27"]
[WhiteClock "0:00:13"]
[BlackClock "0:00:06"]
[Board "53"]

1. e4 {[%clk 0:02:57]}  c5 {[%clk 0:02:57]} 2. Nf3 {[%clk 0:02:56]}  d6 {[%clk 0:02:56]} 3. d4 {[%clk 0:02:57]}  cxd4 {[%clk 0:02:54]} 4. Nxd4 {[%clk 0:02:58]}  Nf6 {[%clk 0:02:55]} 5. Nc3 {[%clk 0:02:58]}  Bd7 {[%clk 0:02:56]} 6. Bg5 {[%clk 0:02:53]}  e6 {[%clk 0:02:56]} 7. f4 {[%clk 0:02:45]}  Nc6 {[%clk 0:02:54]} 8. Qd2 {[%clk 0:02:43]}  h6 {[%clk 0:02:50]} 9. Bh4 {[%clk 0:02:42]}  Nxe4 {[%clk 0:02:49]} 10. Nxe4 {[%clk 0:02:27]}  Qxh4+ {[%clk 0:02:47]} 11. g3 {[%clk 0:02:27]}  Qd8 {[%clk 0:02:37]} 12. Bg2 {[%clk 0:02:08]}  d5 {[%clk 0:02:34]} 13. Nc3 {[%clk 0:01:59]}  Bb4 {[%clk 0:02:08]} 14. a3 {[%clk 0:01:57]}  Bxc3 {[%clk 0:02:01]} 15. Qxc3 {[%clk 0:01:58]}  Nxd4 {[%clk 0:02:02]} 16. Qxd4 {[%clk 0:01:58]}  O-O {[%clk 0:02:01]} 17. O-O-O {[%clk 0:01:56]}  Qb6 {[%clk 0:01:49]} 18. Qxb6 {[%clk 0:01:43]}  axb6 {[%clk 0:01:50]} 19. Rd4 {[%clk 0:01:43]}  Rfc8 {[%clk 0:01:48]} 20. Rb4 {[%clk 0:01:42]}  b5 {[%clk 0:01:45]} 21. Bf1 {[%clk 0:01:39]}  Rc5 {[%clk 0:01:44]} 22. Bd3 {[%clk 0:01:39]}  Ra4 {[%clk 0:01:42]} 23. Kd2 {[%clk 0:01:33]}  Rxb4 {[%clk 0:01:40]} 24. axb4 {[%clk 0:01:33]}  Rc7 {[%clk 0:01:17]} 25. Ra1 {[%clk 0:01:33]}  Kf8 {[%clk 0:01:18]} 26. Ra8+ {[%clk 0:01:15]}  Ke7 {[%clk 0:01:17]} 27. Ke3 {[%clk 0:01:08]}  f6 {[%clk 0:00:52]} 28. c3 {[%clk 0:00:38]}  e5 {[%clk 0:00:51]} 29. h4 {[%clk 0:00:36]}  Bc6 {[%clk 0:00:41]} 30. h5 {[%clk 0:00:34]}  Kd6 {[%clk 0:00:39]} 31. Bg6 {[%clk 0:00:33]}  Re7 {[%clk 0:00:37]} 32. Rd8+ {[%clk 0:00:28]}  Kc7 {[%clk 0:00:37]} 33. Rg8 {[%clk 0:00:28]}  Bd7 {[%clk 0:00:28]} 34. Kd2 {[%clk 0:00:26]}  Be6 {[%clk 0:00:26]} 35. Rf8 {[%clk 0:00:26]}  Rd7 {[%clk 0:00:17]} 36. Re8 {[%clk 0:00:24]}  Kd6 {[%clk 0:00:12]} 37. Ke3 {[%clk 0:00:21]}  Bf7 {[%clk 0:00:11]} 38. Rf8 {[%clk 0:00:17]}  Bxg6 {[%clk 0:00:11]} 39. hxg6 {[%clk 0:00:18]}  Re7 {[%clk 0:00:11]} 40. f5 {[%clk 0:00:17]}  Rc7 {[%clk 0:00:09]} 41. g4 {[%clk 0:00:17]}  Re7 {[%clk 0:00:08]} 42. Kd3 {[%clk 0:00:16]}  Rc7 {[%clk 0:00:07]} 43. Rd8+ {[%clk 0:00:14]}  Rd7 {[%clk 0:00:06]} 44. Rc8 {[%clk 0:00:14]}  Rc7 {[%clk 0:00:05]} 45. Rb8 {[%clk 0:00:14]}  Kc6 {[%clk 0:00:05]} 46. Rf8 {[%clk 0:00:13]}  Kd6 {[%clk 0:00:05]} 47. Rg8 {[%clk 0:00:14]}  Rd7 {[%clk 0:00:05]} 48. Ke3 {[%clk 0:00:14]}  Re7 {[%clk 0:00:06]} 49. Kd3 {[%clk 0:00:11]}  e4+ {[%clk 0:00:05]} 50. Ke3 {[%clk 0:00:11]}  Kc6 {[%clk 0:00:05]} 51. Rd8 {[%clk 0:00:11]}  Rc7 {[%clk 0:00:05]} 52. Re8 {[%clk 0:00:11]}  Rd7 {[%clk 0:00:05]} 53. Re6+ {[%clk 0:00:12]}  Kc7 {[%clk 0:00:04]} 54. Kd4 {[%clk 0:00:11]}  Kd8 {[%clk 0:00:03]} 55. Rb6 {[%clk 0:00:09]}  Kc7 {[%clk 0:00:03]} 56. Rxb5 {[%clk 0:00:09]}  Re7 {[%clk 0:00:03]} 57. Ke3 {[%clk 0:00:09]}  Kc6 {[%clk 0:00:03]} 58. Rc5+ {[%clk 0:00:10]}  Kd6 {[%clk 0:00:03]} 59. c4 {[%clk 0:00:10]}  d4+ {[%clk 0:00:03]} 60. Ke2 {[%clk 0:00:07]}  e3 {[%clk 0:00:04]} 61. Rd5+ {[%clk 0:00:07]}  Kc6 {[%clk 0:00:04]} 62. Rxd4 {[%clk 0:00:07]}  b5 {[%clk 0:00:03]} 63. cxb5+ {[%clk 0:00:07]}  Kxb5 {[%clk 0:00:02]} 64. Rd3 {[%clk 0:00:08]}  Kxb4 {[%clk 0:00:02]} 65. Rxe3 {[%clk 0:00:09]}  Rxe3+ {[%clk 0:00:02]} 66. Kxe3 {[%clk 0:00:09]}  Kb3 {[%clk 0:00:03]} 67. Kd4 {[%clk 0:00:09]}  Kxb2 {[%clk 0:00:04]} 68. Kd5 {[%clk 0:00:10]}  Kc3 {[%clk 0:00:05]} 69. Ke6 {[%clk 0:00:11]}  Kd3 {[%clk 0:00:06]} 70. Kf7 {[%clk 0:00:11]}  Ke4 {[%clk 0:00:07]} 71. Kxg7 {[%clk 0:00:12]}  Kf4 {[%clk 0:00:07]} 72. Kxh6 {[%clk 0:00:12]}  Kxg4 {[%clk 0:00:08]} 73. g7 {[%clk 0:00:12]}  Kxf5 {[%clk 0:00:06]} 74. g8=Q {[%clk 0:00:13]} 1-0


[Site "https://www.chess.com"]

[Event "Titled Tuesday Blitz June 27 Early 2023"]
[White "Turzo, Attila"]
[Black "Panesar Vedant"]
[WhiteFideId "704954"]
[BlackFideId "35033018"]
[WhiteElo "2548"]
[BlackElo "2726"]
[Result "0-1"]
[Round "10"]
[TimeControl "180+2"]
[Date "2023.06.27"]
[WhiteClock "0:00:05"]
[BlackClock "0:00:13"]
[Board "54"]

1. d4 {[%clk 0:03:00]}  Nf6 {[%clk 0:02:59]} 2. c4 {[%clk 0:03:01]}  g6 {[%clk 0:02:59]} 3. g3 {[%clk 0:03:02]}  Bg7 {[%clk 0:03:00]} 4. Bg2 {[%clk 0:03:02]}  O-O {[%clk 0:03:00]} 5. Nf3 {[%clk 0:03:03]}  d6 {[%clk 0:03:01]} 6. O-O {[%clk 0:03:04]}  Nc6 {[%clk 0:03:02]} 7. Nc3 {[%clk 0:03:04]}  e5 {[%clk 0:03:03]} 8. dxe5 {[%clk 0:03:03]}  dxe5 {[%clk 0:03:04]} 9. Qxd8 {[%clk 0:03:03]}  Rxd8 {[%clk 0:03:02]} 10. Bg5 {[%clk 0:02:58]}  Be6 {[%clk 0:03:01]} 11. Nd2 {[%clk 0:02:36]}  h6 {[%clk 0:02:47]} 12. Bxf6 {[%clk 0:02:27]}  Rxd2 {[%clk 0:02:47]} 13. Bxg7 {[%clk 0:02:16]}  Kxg7 {[%clk 0:02:48]} 14. Bxc6 {[%clk 0:02:12]}  bxc6 {[%clk 0:02:49]} 15. b3 {[%clk 0:02:12]}  Rad8 {[%clk 0:02:39]} 16. Rfd1 {[%clk 0:02:08]}  f5 {[%clk 0:02:35]} 17. Kf1 {[%clk 0:02:00]}  R8d6 {[%clk 0:01:58]} 18. Rxd2 {[%clk 0:01:51]}  Rxd2 {[%clk 0:01:56]} 19. Rc1 {[%clk 0:01:52]}  Kf6 {[%clk 0:01:49]} 20. Ke1 {[%clk 0:01:52]}  Rd6 {[%clk 0:01:49]} 21. h4 {[%clk 0:01:44]}  e4 {[%clk 0:01:47]} 22. e3 {[%clk 0:01:42]}  g5 {[%clk 0:01:45]} 23. hxg5+ {[%clk 0:01:41]}  hxg5 {[%clk 0:01:46]} 24. Na4 {[%clk 0:01:31]}  Bf7 {[%clk 0:01:40]} 25. Rd1 {[%clk 0:01:27]}  Bh5 {[%clk 0:01:40]} 26. Rd2 {[%clk 0:01:26]}  Bf3 {[%clk 0:01:33]} 27. c5 {[%clk 0:01:25]}  Rxd2 {[%clk 0:00:51]} 28. Kxd2 {[%clk 0:01:26]}  Ke5 {[%clk 0:00:52]} 29. b4 {[%clk 0:01:17]}  Bh5 {[%clk 0:00:43]} 30. Nc3 {[%clk 0:01:13]}  Bf7 {[%clk 0:00:41]} 31. a3 {[%clk 0:01:12]}  Bc4 {[%clk 0:00:40]} 32. Na4 {[%clk 0:01:10]}  f4 {[%clk 0:00:36]} 33. gxf4+ {[%clk 0:01:09]}  gxf4 {[%clk 0:00:37]} 34. Nb2 {[%clk 0:01:04]}  Bd5 {[%clk 0:00:31]} 35. Kc3 {[%clk 0:01:01]}  f3 {[%clk 0:00:28]} 36. Nc4+ {[%clk 0:00:52]}  Kf5 {[%clk 0:00:23]} 37. Nd2 {[%clk 0:00:46]}  Kg4 {[%clk 0:00:20]} 38. Kd4 {[%clk 0:00:46]}  Kh3 {[%clk 0:00:20]} 39. b5 {[%clk 0:00:25]}  Kg2 {[%clk 0:00:19]} 40. a4 {[%clk 0:00:22]}  Kxf2 {[%clk 0:00:19]} 41. a5 {[%clk 0:00:23]}  Ke2 {[%clk 0:00:17]} 42. b6 {[%clk 0:00:20]}  cxb6 {[%clk 0:00:12]} 43. cxb6 {[%clk 0:00:20]}  Kxd2 {[%clk 0:00:13]} 44. bxa7 {[%clk 0:00:19]}  f2 {[%clk 0:00:13]} 45. Kc5 {[%clk 0:00:18]}  f1=Q {[%clk 0:00:14]} 46. a8=Q {[%clk 0:00:18]}  Qb5+ {[%clk 0:00:14]} 47. Kd6 {[%clk 0:00:18]}  Qb4+ {[%clk 0:00:14]} 48. Ke5 {[%clk 0:00:17]}  Kxe3 {[%clk 0:00:14]} 49. Qa7+ {[%clk 0:00:16]}  Kd3 {[%clk 0:00:14]} 50. a6 {[%clk 0:00:15]}  Qc3+ {[%clk 0:00:14]} 51. Kf4 {[%clk 0:00:14]}  Qd4 {[%clk 0:00:13]} 52. Qb7 {[%clk 0:00:12]}  e3+ {[%clk 0:00:13]} 53. Kg5 {[%clk 0:00:12]}  e2 {[%clk 0:00:13]} 54. a7 {[%clk 0:00:11]}  e1=Q {[%clk 0:00:12]} 55. a8=Q {[%clk 0:00:05]}  Qee5+ {[%clk 0:00:13]} 0-1


[Site "https://www.chess.com"]

[Event "Titled Tuesday Blitz June 27 Early 2023"]
[White "Yaksin, Oleg"]
[Black "Yuan, Qingyu"]
[WhiteFideId "24105880"]
[BlackFideId "8609772"]
[WhiteElo "2547"]
[BlackElo "2712"]
[Result "0-1"]
[Round "10"]
[TimeControl "180+2"]
[Date "2023.06.27"]
[WhiteClock "0:00:00"]
[BlackClock "0:00:03"]
[Board "55"]

1. d4 {[%clk 0:02:56]}  Nf6 {[%clk 0:03:00]} 2. c4 {[%clk 0:02:57]}  e6 {[%clk 0:03:00]} 3. g3 {[%clk 0:02:56]}  d5 {[%clk 0:03:00]} 4. Nf3 {[%clk 0:02:55]}  dxc4 {[%clk 0:03:01]} 5. Bg2 {[%clk 0:02:56]}  c5 {[%clk 0:03:01]} 6. O-O {[%clk 0:02:56]}  Nc6 {[%clk 0:03:02]} 7. Ne5 {[%clk 0:02:56]}  Bd7 {[%clk 0:03:02]} 8. Na3 {[%clk 0:02:55]}  cxd4 {[%clk 0:02:59]} 9. Naxc4 {[%clk 0:02:55]}  Be7 {[%clk 0:02:58]} 10. Qb3 {[%clk 0:02:54]}  Qc7 {[%clk 0:02:58]} 11. Bf4 {[%clk 0:02:50]}  Nh5 {[%clk 0:02:59]} 12. Nxc6 {[%clk 0:02:34]}  Nxf4 {[%clk 0:02:58]} 13. Nxe7 {[%clk 0:02:31]}  Nxg2 {[%clk 0:02:59]} 14. Kxg2 {[%clk 0:02:31]}  Qc5 {[%clk 0:02:28]} 15. Rac1 {[%clk 0:02:00]}  Kxe7 {[%clk 0:02:07]} 16. Kg1 {[%clk 0:01:48]}  Bc6 {[%clk 0:01:53]} 17. Rfd1 {[%clk 0:01:40]}  Rhd8 {[%clk 0:01:31]} 18. Qd3 {[%clk 0:01:20]}  g6 {[%clk 0:01:21]} 19. a3 {[%clk 0:01:07]}  Rac8 {[%clk 0:01:13]} 20. Qd2 {[%clk 0:00:59]}  Qd5 {[%clk 0:01:00]} 21. f3 {[%clk 0:00:55]}  Kf8 {[%clk 0:00:56]} 22. Qh6+ {[%clk 0:00:44]}  Kg8 {[%clk 0:00:56]} 23. Nd2 {[%clk 0:00:44]}  Qe5 {[%clk 0:00:53]} 24. Nc4 {[%clk 0:00:35]}  Qxe2 {[%clk 0:00:47]} 25. Rf1 {[%clk 0:00:35]}  Bxf3 {[%clk 0:00:31]} 26. Rf2 {[%clk 0:00:28]}  Rxc4 {[%clk 0:00:30]} 27. Rxe2 {[%clk 0:00:26]}  Bxe2 {[%clk 0:00:20]} 28. Rxc4 {[%clk 0:00:20]}  Bxc4 {[%clk 0:00:21]} 29. Qg5 {[%clk 0:00:20]}  Rd5 {[%clk 0:00:20]} 30. Qf4 {[%clk 0:00:08]}  d3 {[%clk 0:00:19]} 31. Qd2 {[%clk 0:00:05]}  a5 {[%clk 0:00:17]} 32. Kf2 {[%clk 0:00:04]}  a4 {[%clk 0:00:16]} 33. Kf3 {[%clk 0:00:04]}  b5 {[%clk 0:00:16]} 34. Ke4 {[%clk 0:00:04]}  Kg7 {[%clk 0:00:15]} 35. h4 {[%clk 0:00:05]}  f6 {[%clk 0:00:16]} 36. Kf4 {[%clk 0:00:03]}  Re5 {[%clk 0:00:13]} 37. Kf3 {[%clk 0:00:01]}  Re2 {[%clk 0:00:09]} 38. Qc3 {[%clk 0:00:02]}  d2 {[%clk 0:00:09]} 39. Qd4 {[%clk 0:00:02]}  Bb3 {[%clk 0:00:05]} 40. Qd7+ {[%clk 0:00:00]}  Kh6 {[%clk 0:00:03]} 0-1


[Site "https://www.chess.com"]

[Event "Titled Tuesday Blitz June 27 Early 2023"]
[White "Adla, Diego"]
[Black "Klekowski, Maciej"]
[WhiteFideId "100072"]
[BlackFideId "1132717"]
[WhiteElo "2544"]
[BlackElo "2707"]
[Result "1-0"]
[Round "10"]
[TimeControl "180+2"]
[Date "2023.06.27"]
[WhiteClock "0:01:18"]
[BlackClock "0:00:00"]
[Board "56"]

1. c4 {[%clk 0:03:00]}  Nf6 {[%clk 0:00:15]} 2. Nc3 {[%clk 0:02:59]}  e6 {[%clk 0:00:16]} 3. e4 {[%clk 0:02:59]}  d6 {[%clk 0:00:16]} 4. d4 {[%clk 0:02:58]}  Be7 {[%clk 0:00:17]} 5. Bd3 {[%clk 0:02:57]}  O-O {[%clk 0:00:18]} 6. Nf3 {[%clk 0:02:58]}  Nc6 {[%clk 0:00:18]} 7. d5 {[%clk 0:02:57]}  Ne5 {[%clk 0:00:18]} 8. Nxe5 {[%clk 0:02:56]}  dxe5 {[%clk 0:00:19]} 9. O-O {[%clk 0:02:56]}  exd5 {[%clk 0:00:19]} 10. exd5 {[%clk 0:02:56]}  Bg4 {[%clk 0:00:19]} 11. Qc2 {[%clk 0:02:55]}  Bh5 {[%clk 0:00:20]} 12. f4 {[%clk 0:02:54]}  exf4 {[%clk 0:00:19]} 13. Bxf4 {[%clk 0:02:53]}  Bg6 {[%clk 0:00:20]} 14. Bxg6 {[%clk 0:02:52]}  hxg6 {[%clk 0:00:21]} 15. h3 {[%clk 0:02:50]}  a6 {[%clk 0:00:20]} 16. Rae1 {[%clk 0:02:48]}  Bc5+ {[%clk 0:00:20]} 17. Kh1 {[%clk 0:02:47]}  Nh5 {[%clk 0:00:21]} 18. Bh2 {[%clk 0:02:46]}  Bd6 {[%clk 0:00:20]} 19. Ne4 {[%clk 0:02:45]}  Bxh2 {[%clk 0:00:20]} 20. Kxh2 {[%clk 0:02:46]}  Qd7 {[%clk 0:00:20]} 21. g4 {[%clk 0:02:43]}  f5 {[%clk 0:00:20]} 22. gxh5 {[%clk 0:02:25]}  fxe4 {[%clk 0:00:20]} 23. Qxe4 {[%clk 0:02:20]}  gxh5 {[%clk 0:00:20]} 24. Kg2 {[%clk 0:02:12]}  Rxf1 {[%clk 0:00:20]} 25. Rxf1 {[%clk 0:02:10]}  Re8 {[%clk 0:00:20]} 26. Qf3 {[%clk 0:02:08]}  Re5 {[%clk 0:00:11]} 27. Qf8+ {[%clk 0:01:57]}  Kh7 {[%clk 0:00:11]} 28. Rf2 {[%clk 0:01:57]}  Rg5+ {[%clk 0:00:10]} 29. Kh2 {[%clk 0:01:57]}  c6 {[%clk 0:00:06]} 30. d6 {[%clk 0:01:51]}  Qe6 {[%clk 0:00:06]} 31. Qf4 {[%clk 0:01:49]}  Re5 {[%clk 0:00:05]} 32. d7 {[%clk 0:01:39]}  Re3 {[%clk 0:00:02]} 33. d8=Q {[%clk 0:01:18]}  Qxh3+ {[%clk 0:00:00]} 34. Kg1 {[%clk 0:01:18]} 1-0


[Site "https://www.chess.com"]

[Event "Titled Tuesday Blitz June 27 Early 2023"]
[White "Melikhov, Evgeny V."]
[Black "Aloma Vidal, Robert"]
[WhiteFideId "4122046"]
[BlackFideId "2260409"]
[WhiteElo "2395"]
[BlackElo "2577"]
[Result "0-1"]
[Round "10"]
[TimeControl "180+2"]
[Date "2023.06.27"]
[WhiteClock "0:00:56"]
[BlackClock "0:01:46"]
[Board "64"]

1. d4 {[%clk 0:03:00]}  d5 {[%clk 0:02:58]} 2. c4 {[%clk 0:03:00]}  c6 {[%clk 0:02:56]} 3. Nc3 {[%clk 0:03:00]}  Nf6 {[%clk 0:02:55]} 4. e3 {[%clk 0:03:00]}  e6 {[%clk 0:02:55]} 5. Nf3 {[%clk 0:03:01]}  Nbd7 {[%clk 0:02:55]} 6. Bd3 {[%clk 0:03:01]}  dxc4 {[%clk 0:02:54]} 7. Bxc4 {[%clk 0:03:01]}  b5 {[%clk 0:02:55]} 8. Bd3 {[%clk 0:03:02]}  b4 {[%clk 0:02:55]} 9. Ne4 {[%clk 0:03:01]}  c5 {[%clk 0:02:42]} 10. dxc5 {[%clk 0:02:38]}  Bxc5 {[%clk 0:02:37]} 11. Nxc5 {[%clk 0:02:34]}  Nxc5 {[%clk 0:02:37]} 12. Bb5+ {[%clk 0:02:34]}  Bd7 {[%clk 0:02:31]} 13. Bxd7+ {[%clk 0:02:33]}  Qxd7 {[%clk 0:02:29]} 14. Qxd7+ {[%clk 0:02:32]}  Nfxd7 {[%clk 0:02:29]} 15. Ke2 {[%clk 0:02:29]}  Ke7 {[%clk 0:02:25]} 16. b3 {[%clk 0:02:29]}  f6 {[%clk 0:02:20]} 17. Bb2 {[%clk 0:02:29]}  e5 {[%clk 0:02:20]} 18. Nd2 {[%clk 0:02:19]}  Nb6 {[%clk 0:02:17]} 19. a3 {[%clk 0:02:17]}  a5 {[%clk 0:02:14]} 20. axb4 {[%clk 0:02:17]}  axb4 {[%clk 0:02:14]} 21. Rhc1 {[%clk 0:01:57]}  Kd6 {[%clk 0:02:10]} 22. Nc4+ {[%clk 0:01:39]}  Nxc4 {[%clk 0:02:09]} 23. Rxc4 {[%clk 0:01:37]}  Rxa1 {[%clk 0:02:07]} 24. Bxa1 {[%clk 0:01:37]}  Ra8 {[%clk 0:02:04]} 25. Bxe5+ {[%clk 0:01:27]}  fxe5 {[%clk 0:02:01]} 26. Rxb4 {[%clk 0:01:27]}  Ra2+ {[%clk 0:02:00]} 27. Kf3 {[%clk 0:01:21]}  Rxf2+ {[%clk 0:01:54]} 28. Kxf2 {[%clk 0:01:19]}  Nd3+ {[%clk 0:01:53]} 29. Kf3 {[%clk 0:01:19]}  Nxb4 {[%clk 0:01:54]} 30. Ke4 {[%clk 0:01:17]}  Ke6 {[%clk 0:01:55]} 31. h4 {[%clk 0:01:17]}  h5 {[%clk 0:01:55]} 32. Kf3 {[%clk 0:01:13]}  Kd5 {[%clk 0:01:53]} 33. g4 {[%clk 0:01:12]}  g6 {[%clk 0:01:52]} 34. gxh5 {[%clk 0:01:06]}  gxh5 {[%clk 0:01:51]} 35. Ke2 {[%clk 0:01:02]}  Ke4 {[%clk 0:01:46]} 36. Kd2 {[%clk 0:01:02]}  Nd5 {[%clk 0:01:45]} 37. Ke2 {[%clk 0:01:00]}  Nxe3 {[%clk 0:01:45]} 38. b4 {[%clk 0:01:00]}  Nf5 {[%clk 0:01:45]} 39. b5 {[%clk 0:00:56]}  Nd4+ {[%clk 0:01:46]} 0-1


[Site "https://www.chess.com"]

[Event "Titled Tuesday Blitz June 27 Early 2023"]
[White "Marchesich, Giovanni"]
[Black "Ginzburg, Yakov"]
[WhiteFideId "2824790"]
[BlackFideId "4157176"]
[WhiteElo "2300"]
[BlackElo "2505"]
[Result "0-1"]
[Round "10"]
[TimeControl "180+2"]
[Date "2023.06.27"]
[WhiteClock "0:00:00"]
[BlackClock "0:00:16"]
[Board "65"]

1. d4 {[%clk 0:03:00]}  d5 {[%clk 0:02:58]} 2. Nc3 {[%clk 0:03:00]}  Nf6 {[%clk 0:02:58]} 3. Bf4 {[%clk 0:03:00]}  c5 {[%clk 0:02:57]} 4. e4 {[%clk 0:02:59]}  cxd4 {[%clk 0:02:56]} 5. Qxd4 {[%clk 0:02:56]}  Nc6 {[%clk 0:02:56]} 6. Bb5 {[%clk 0:02:54]}  a6 {[%clk 0:02:45]} 7. Bxc6+ {[%clk 0:02:39]}  bxc6 {[%clk 0:02:46]} 8. e5 {[%clk 0:02:31]}  Nd7 {[%clk 0:02:31]} 9. e6 {[%clk 0:02:32]}  Nf6 {[%clk 0:02:17]} 10. exf7+ {[%clk 0:02:30]}  Kxf7 {[%clk 0:02:18]} 11. Nf3 {[%clk 0:02:31]}  Bf5 {[%clk 0:02:09]} 12. O-O {[%clk 0:02:25]}  Rc8 {[%clk 0:02:02]} 13. Ne5+ {[%clk 0:02:12]}  Kg8 {[%clk 0:01:59]} 14. Na4 {[%clk 0:02:10]}  e6 {[%clk 0:01:56]} 15. Nc5 {[%clk 0:02:10]}  Ne4 {[%clk 0:01:51]} 16. b4 {[%clk 0:02:00]}  Nxc5 {[%clk 0:01:50]} 17. bxc5 {[%clk 0:02:00]}  Qe7 {[%clk 0:01:49]} 18. Be3 {[%clk 0:01:45]}  g6 {[%clk 0:01:43]} 19. g4 {[%clk 0:01:40]}  Bxc2 {[%clk 0:01:43]} 20. Rfc1 {[%clk 0:01:40]}  Be4 {[%clk 0:01:32]} 21. f3 {[%clk 0:01:40]}  Bg7 {[%clk 0:01:18]} 22. fxe4 {[%clk 0:01:39]}  Qf6 {[%clk 0:01:16]} 23. Nxc6 {[%clk 0:00:51]}  Rxc6 {[%clk 0:01:14]} 24. Qxf6 {[%clk 0:00:48]}  Bxf6 {[%clk 0:01:14]} 25. Rab1 {[%clk 0:00:49]}  d4 {[%clk 0:01:06]} 26. Bh6 {[%clk 0:00:33]}  Kf7 {[%clk 0:00:49]} 27. Rb7+ {[%clk 0:00:33]}  Ke8 {[%clk 0:00:49]} 28. Rb8+ {[%clk 0:00:31]}  Kd7 {[%clk 0:00:49]} 29. Rb7+ {[%clk 0:00:22]}  Kc8 {[%clk 0:00:33]} 30. Rf7 {[%clk 0:00:18]}  Be5 {[%clk 0:00:31]} 31. Bg7 {[%clk 0:00:18]}  Bxg7 {[%clk 0:00:29]} 32. Rxg7 {[%clk 0:00:19]}  Rf8 {[%clk 0:00:21]} 33. Rxh7 {[%clk 0:00:15]}  Rf4 {[%clk 0:00:21]} 34. h3 {[%clk 0:00:10]}  Rxe4 {[%clk 0:00:21]} 35. Rf1 {[%clk 0:00:11]}  Kb8 {[%clk 0:00:20]} 36. Rf8+ {[%clk 0:00:10]}  Rc8 {[%clk 0:00:20]} 37. Rxc8+ {[%clk 0:00:03]}  Kxc8 {[%clk 0:00:20]} 38. Re7 {[%clk 0:00:01]}  d3 {[%clk 0:00:18]} 39. c6 {[%clk 0:00:00]}  Rd4 {[%clk 0:00:16]} 0-1


[Site "https://www.chess.com"]

[Event "Titled Tuesday Blitz June 27 Early 2023"]
[White "Sevian, Samuel"]
[Black "Tologon tegin, Semetei"]
[WhiteFideId "2040506"]
[BlackFideId "13800574"]
[WhiteElo "3015"]
[BlackElo "2536"]
[Result "1-0"]
[Round "10"]
[TimeControl "180+2"]
[Date "2023.06.27"]
[WhiteClock "0:00:05"]
[BlackClock "0:00:02"]
[Board "66"]

1. e4 {[%clk 0:02:58]}  e6 {[%clk 0:02:58]} 2. d4 {[%clk 0:02:58]}  b6 {[%clk 0:02:58]} 3. Nc3 {[%clk 0:02:59]}  Bb7 {[%clk 0:02:59]} 4. Bd3 {[%clk 0:03:00]}  Bb4 {[%clk 0:02:54]} 5. Ne2 {[%clk 0:03:00]}  Nf6 {[%clk 0:02:54]} 6. O-O {[%clk 0:03:00]}  d5 {[%clk 0:02:49]} 7. e5 {[%clk 0:03:00]}  Nfd7 {[%clk 0:02:44]} 8. Ng3 {[%clk 0:02:59]}  g6 {[%clk 0:02:38]} 9. f4 {[%clk 0:02:59]}  Be7 {[%clk 0:02:29]} 10. f5 {[%clk 0:02:58]}  exf5 {[%clk 0:02:29]} 11. Bxf5 {[%clk 0:02:58]}  gxf5 {[%clk 0:02:29]} 12. Nxf5 {[%clk 0:02:58]}  Rg8 {[%clk 0:02:16]} 13. Qh5 {[%clk 0:02:54]}  Nf8 {[%clk 0:02:13]} 14. Nh6 {[%clk 0:02:48]}  Rg6 {[%clk 0:02:13]} 15. Nxf7 {[%clk 0:02:45]}  Qd7 {[%clk 0:02:12]} 16. e6 {[%clk 0:02:39]}  Qxe6 {[%clk 0:02:07]} 17. Bg5 {[%clk 0:02:38]}  Bxg5 {[%clk 0:01:52]} 18. Nxg5 {[%clk 0:02:36]}  Qe3+ {[%clk 0:01:52]} 19. Kh1 {[%clk 0:02:36]}  Qxg5 {[%clk 0:01:52]} 20. Rae1+ {[%clk 0:02:36]}  Kd7 {[%clk 0:01:49]} 21. Qh3+ {[%clk 0:02:14]}  Ne6 {[%clk 0:01:42]} 22. Rf7+ {[%clk 0:02:12]}  Kd6 {[%clk 0:01:36]} 23. Nb5+ {[%clk 0:01:25]}  Kc6 {[%clk 0:01:34]} 24. a4 {[%clk 0:01:25]}  Bc8 {[%clk 0:00:46]} 25. Qxe6+ {[%clk 0:01:10]}  Kb7 {[%clk 0:00:44]} 26. Rxc7+ {[%clk 0:00:56]}  Ka6 {[%clk 0:00:43]} 27. Qxc8+ {[%clk 0:00:56]}  Ka5 {[%clk 0:00:42]} 28. Qh3 {[%clk 0:00:56]}  Na6 {[%clk 0:00:38]} 29. Rxh7 {[%clk 0:00:42]}  Nb4 {[%clk 0:00:29]} 30. c3 {[%clk 0:00:42]}  Nd3 {[%clk 0:00:27]} 31. b4+ {[%clk 0:00:08]}  Kxa4 {[%clk 0:00:27]} 32. Ra1+ {[%clk 0:00:08]}  Kxb5 {[%clk 0:00:17]} 33. Qxd3+ {[%clk 0:00:08]}  Kc6 {[%clk 0:00:17]} 34. b5+ {[%clk 0:00:08]}  Kd6 {[%clk 0:00:16]} 35. Rg1 {[%clk 0:00:09]}  Re8 {[%clk 0:00:13]} 36. Rf7 {[%clk 0:00:06]}  Re3 {[%clk 0:00:11]} 37. Qd2 {[%clk 0:00:06]}  Rh6 {[%clk 0:00:10]} 38. g3 {[%clk 0:00:05]}  Qh5 {[%clk 0:00:06]} 39. Qg2 {[%clk 0:00:03]}  Re2 {[%clk 0:00:05]} 40. Rf2 {[%clk 0:00:04]}  Rhe6 {[%clk 0:00:02]} 41. Rgf1 {[%clk 0:00:04]}  Rxf2 {[%clk 0:00:02]} 42. Qxf2 {[%clk 0:00:05]}  Rh6 {[%clk 0:00:01]} 43. Qf8+ {[%clk 0:00:05]}  Ke6 {[%clk 0:00:02]} 44. Re1+ {[%clk 0:00:04]}  Kd7 {[%clk 0:00:02]} 45. Re7+ {[%clk 0:00:04]}  Kd6 {[%clk 0:00:02]} 46. Qd8# {[%clk 0:00:05]} 1-0


[Site "https://www.chess.com"]